[Event "FIDE WSTC Open 50 2025"]
[Site "Prague"]
[Date "2025.02.21"]
[Round "5.13"]
[White "Adams, Michael"]
[Black "Bischoff, Klaus"]
[Result "1-0"]
[Annotator "TA"]
[ECO "B45"]
[WhiteElo "2664"]
[BlackElo "2432"]
[PlyCount "61"]
[EventDate "2025.02.17"]
[EventType "team-tourn"]
[EventCountry "CZE"]
[SourceTitle "playchess.com"]
[Source "ChessBase"]
[SourceQuality "1"]
[TimeControl "40/5400+30:1800+30"]

{[%evp 12,61,56,48,52,54,66,68,68,56,107,102,101,105,81,81,112,104,107,122,158,137,139,122,205,200,217,212,205,213,204,141,219,207,222,211,253,239,241,212,242,248,233,243,252,265,275,280,280,267,320,309]} 1. e4 {[%emt 0:00:04]} c5 {[%emt 0:00:08]} 2. Nf3 {[%emt 0:00:06]} e6 {[%emt 0:00:07]} 3. d4 {[%emt 0:00:05]} cxd4 {[%emt 0:00:08]} 4. Nxd4 {[%emt 0:00:05]} Nc6 {[%emt 0:00:33]} 5. Nc3 {[%emt 0:00:09]} d6 {[%emt 0:01:04]} 6. Be3 {[%emt 0:00:37]} a6 {[%emt 0:01:45]} 7. Qd2 {[%emt 0:01:59]} Bd7 {[%emt 0:03:41] B54: Sicilian: 2...d6 3 d4 cxd4 4 Nxd4, Unusual Lines .} 8. O-O-O {[%emt 0:00:46]} Rc8 {[%emt 0:02:48]} 9. Kb1 {[%emt 0:07:56] White is more active.} Nf6 {[%emt 0:05:51] White is slightly better.} 10. f3 {[%emt 0:01:03]} Ne5 {[%emt 0:05:31] White leaves nothing to chance now.} (10... h5 $14) 11. g4 {[%emt 0:03:19]} h6 {[%emt 0:01:44]} 12. h4 {[%emt 0:01:20]} b5 {[%emt 0:05:53]} 13. a3 {[%emt 0:04:20]} g6 {[%emt 0:09:13]} 14. Be2 {[%emt 0:02:36]} Nc4 {[%emt 0:08:55]} 15. Bxc4 {[%emt 0:00:19]} Rxc4 {[%emt 0:00:06]} 16. Rhe1 $146 {[%emt 0:03:02]} (16. Nb3 a5 17. Qd3 Qc7 18. Nd2 Rxc3 19. Qxc3 Qxc3 20. bxc3 Bg7 21. c4 b4 22. Nb3 a4 23. Na5 bxa3 24. Rxd6 Ke7 25. Bc5 Rb8+ 26. Rb6+ {1-0 Tsang,H (2279)-Luk,L (1977) HKG-ch13 email 2011}) 16... Qc7 {[%emt 0:07:35]} 17. g5 {[%emt 0:05:05]} Rxc3 {[%emt 0:06:46]} 18. Qxc3 $18 {[%emt 0:11:53]} ({But not} 18. bxc3 hxg5 19. hxg5 Nh5 $16) 18... Qxc3 {[%emt 0:00:20]} 19. bxc3 {[%emt 0:00:04]} hxg5 {[%emt 0:00:29]} 20. hxg5 {[%emt 0:00:04]} Nh5 {[%emt 0:00:43]} 21. c4 {[%emt 0:07:50]} Be7 {[%emt 0:05:44]} (21... bxc4 $16 {was necessary.} 22. Ne2 Bb5) 22. cxb5 {[%emt 0:01:07]} axb5 {[%emt 0:00:07]} 23. Ne2 {[%emt 0:06:37]} O-O {[%emt 0:03:25]} 24. Rd3 {[%emt 0:05:34]} Ra8 {[%emt 0:03:54]} 25. Red1 {[%emt 0:03:30]} d5 {[%emt 0:02:56]} 26. exd5 {[%emt 0:03:08]} exd5 {[%emt 0:00:08]} 27. Rxd5 {[%emt 0:07:25]} Be6 {[%emt 0:00:32]} 28. Rxb5 {[%emt 0:01:54] White has a decisive advantage.} Bc4 {[%emt 0:04:09]} 29. Rb7 {[%emt 0:04:43]} Bxa3 {[%emt 0:01:35]} 30. Nc3 {[%emt 0:01:27]} Ng7 {[%emt 0:02:09]} 31. Bd4 {[%emt 0:03:05] Weighted Error Value: White=0.08 (flawless) /Black=0.22 (precise)   Mistake:       	---       	Black=3      Inaccurate:     	White=1     	Black=1      OK:         	White=10    	Black=8} 1-0

[Event "FIDE WSTC Open 50 2025"]
[Site "Prague"]
[Date "2025.02.21"]
[Round "5.14"]
[White "Seul, Georg"]
[Black "Wells, Peter K"]
[Result "1/2-1/2"]
[Annotator "TA"]
[ECO "C24"]
[WhiteElo "2329"]
[BlackElo "2358"]
[PlyCount "72"]
[EventDate "2025.02.17"]
[EventType "team-tourn"]
[EventCountry "CZE"]
[SourceTitle "playchess.com"]
[Source "ChessBase"]
[SourceQuality "1"]
[TimeControl "40/5400+30:1800+30"]

{[%evp 9,72,0,20,-36,-11,-20,26,33,91,90,79,92,85,90,112,45,54,34,41,50,42,43,112,0,6,13,9,8,20,3,6,14,21,23,47,-50,42,0,0,0,0,0,7,11,20,13,23,0,0,-39,-35,-144,-99,-967,-86,-102,0,0,0,0,0,0,0,0,655]} 1. e4 {[%emt 0:00:03]} e5 {[%emt 0:00:08]} 2. Bc4 {[%emt 0:00:20]} Nf6 {[%emt 0:00:17]} 3. d3 {[%emt 0:00:08]} c6 {[%emt 0:01:41]} 4. Nf3 {[%emt 0:00:17]} d5 {[%emt 0:00:58]} 5. Bb3 {[%emt 0:00:10]} a5 {[%emt 0:04:21]} 6. a3 {[%emt 0:02:48] C24: Bishop's Opening: 2...Nf6.} (6. a4 $11) 6... a4 {[%emt 0:09:48]} 7. Ba2 {[%emt 0:01:27]} dxe4 {[%emt 0:19:31]} (7... Bd6 {should be considered.}) 8. Ng5 $11 {[%emt 0:02:35] White has an edge.} Bg4 {[%emt 0:00:05]} (8... Be6 $14) 9. Bxf7+ $16 {[%emt 0:28:51]} Ke7 {[%emt 0:00:19]} 10. Qd2 {[%emt 0:15:16]} Qd4 $146 {[%emt 0:29:10]} ({Predecessor:} 10... Qa5 11. Bc4 exd3 12. Bxd3 h6 13. Ne4 Nxe4 14. Bxe4 Qxd2+ 15. Bxd2 Nd7 16. f3 Be6 {½-½ Homolka,V (1779)-Reynolds,D (2015) BCF-chT4S 1718 (4NCL) 2017 (4.23)}) 11. Ba2 {[%emt 0:14:58][%csl Oe4,Oe5,Of8] Black has weak pawns. Black has a bad bishop} Nbd7 {[%emt 0:06:35]} 12. dxe4 {[%emt 0:05:37]} (12. Nc3 $16) 12... h6 $14 {[%emt 0:18:57]} 13. Qxd4 {[%emt 0:00:23]} exd4 {[%emt 0:00:03] Successful Defense Black} 14. Nf3 {[%emt 0:00:52]} Bxf3 {[%emt 0:00:32]} 15. gxf3 {[%emt 0:00:04]} b5 {[%emt 0:00:16]} (15... g5 $14) 16. Bf4 {[%emt 0:09:19]} (16. Nd2 $16) 16... g5 {[%emt 0:00:50]} 17. Bg3 {[%emt 0:00:13]} Bg7 {[%emt 0:00:49]} 18. Nd2 {[%emt 0:03:32]} Nh5 {[%emt 0:00:29] [#]} 19. f4 $1 {[%emt 0:02:25]} gxf4 {[%emt 0:01:55]} (19... Nxf4 20. Bxf4) 20. Bh4+ {[%emt 0:00:04]} Bf6 {[%emt 0:00:03]} 21. Nf3 {[%emt 0:00:09]} (21. Bxf6+ {simplifies} Kxf6 22. Nf3 c5 23. c3) 21... c5 {[%emt 0:02:10]} 22. O-O-O {[%emt 0:00:39]} (22. Rg1 $14) 22... Rad8 {[%emt 0:00:42]} ({Black should try} 22... Bxh4 $15 23. Nxh4 Ne5) 23. Rhg1 {[%emt 0:03:41]} Bxh4 {[%emt 0:00:11]} 24. Nxh4 {[%emt 0:00:04]} Ne5 {[%emt 0:00:05]} 25. Ng6+ {[%emt 0:02:23]} Nxg6 {[%emt 0:00:04]} 26. Rxg6 {[%emt 0:00:03]} Rd6 {[%emt 0:01:28] Inhibits Re6+.} 27. Rdg1 {[%emt 0:01:06]} c4 $1 {[%emt 0:01:33]} 28. R6g4 {[%emt 0:00:57] Black must now prevent Rh4.} Re6 {[%emt 0:00:45]} 29. Rh4 {[%emt 0:00:39]} Re5 {[%emt 0:00:07][%cal Oe7f6]} 30. Rg6 {[%emt 0:00:18]} ({Better is} 30. b3 $15 axb3 31. cxb3) 30... Rg5 {[%emt 0:00:56]} 31. Rb6 {[%emt 0:00:30][%mdl 8192] [#]} (31. Rc6 $17) 31... f3 $2 {[%emt 0:00:17]} (31... c3 $1 $19 {[%cal Rg5g1] is more deadly.} 32. Rb7+ Kd8 (32... Kd6 $2 33. e5+ Rxe5 34. Kd1 $19) 33. Rb8+ Kc7 34. Rb7+ Kxb7 35. bxc3 dxc3 36. Bd5+ Kb8) 32. Kd2 $17 {[%emt 0:01:41]} Nf6 {[%emt 0:00:33]} (32... Rf8 $17) 33. Rb7+ $1 $11 {[%emt 0:02:17] The position is equal.} Kd6 {[%emt 0:00:04]} 34. Rb6+ {[%emt 0:00:05]} Ke7 {[%emt 0:00:06]} 35. Rb7+ {[%emt 0:00:19]} Kd6 {[%emt 0:00:08] ...Rg2 is the strong threat.} 36. Rb6+ {[%emt 0:00:34]} Ke5 $2 {[%mdl 40960] Never resign too early!   Weighted Error Value: White=0.44/Black=0.38 An unexpected result.  Loses game:     	White=1     	Black=1      Missed win:     	---       	Black=1      Mistake:       	White=4     	Black=4      Inaccurate:     	White=2     	Black=1      OK:         	White=14    	Black=12     Best:        	White=4     	Black=5      Strong:       	White=1     	Black=1} (36... Ke7 $11 37. Rb7+) 1/2-1/2

[Event "FIDE WSTC Open 50 2025"]
[Site "Prague"]
[Date "2025.02.21"]
[Round "5.15"]
[White "Hebden, Mark L"]
[Black "Schulz, Klaus-Juergen"]
[Result "1-0"]
[Annotator "TA"]
[ECO "D02"]
[WhiteElo "2363"]
[BlackElo "2345"]
[PlyCount "91"]
[EventDate "2025.02.17"]
[EventType "team-tourn"]
[EventCountry "CZE"]
[SourceTitle "playchess.com"]
[Source "ChessBase"]
[SourceQuality "1"]
[TimeControl "40/5400+30:1800+30"]

{[%evp 9,91,37,44,41,43,36,64,45,51,35,59,39,78,42,45,25,27,27,29,30,39,22,40,29,54,49,56,33,73,68,95,104,93,62,65,46,58,60,69,73,100,59,56,56,44,38,47,47,65,61,80,80,159,151,166,154,191,208,289,282,326,302,383,410,414,409,419,369,406,399,571,562,547,334,361,326,1098,1076,1494,1485,2228,2039,1870,1752]} 1. d4 {[%emt 0:00:08]} d5 {[%emt 0:00:21]} 2. Nf3 {[%emt 0:00:21]} Nf6 {[%emt 0:00:27]} 3. Bf4 {[%emt 0:00:14]} c6 {[%emt 0:17:00]} 4. e3 {[%emt 0:01:43]} Bf5 {[%emt 0:00:19]} 5. c4 {[%emt 0:04:45]} dxc4 {[%emt 0:06:15]} 6. Bxc4 {[%emt 0:01:08] D02: 1 d4 d5 2 Nf3 sidelines, including 2...Nf6 3 g3 and 2...Nf6 3 Bf4.} e6 {[%emt 0:00:22]} 7. O-O {[%emt 0:01:56]} h6 {[%emt 0:01:56]} 8. Nc3 {[%emt 0:01:40] White is slightly better.} Nbd7 {[%emt 0:01:24]} 9. Rc1 {[%emt 0:01:21]} Be7 $146 {[%emt 0:04:04]} (9... Nh5 10. Ne5 Nxf4 11. exf4 Nb6 12. Bb3 Qd6 13. Bc2 Bh7 14. Bxh7 Rxh7 15. Ne4 Qe7 {1-0 Talukder,U (1671)-Aeon,S (1436) BAN-ch (Women) 39th 2019 (5)}) 10. Qe2 {[%emt 0:01:29]} Ne4 {[%emt 0:15:41]} 11. Nxe4 {[%emt 0:03:40]} Bxe4 {[%emt 0:00:06]} 12. Nd2 {[%emt 0:00:51]} Bg6 {[%emt 0:03:42]} 13. Rfd1 {[%emt 0:01:16]} Nb6 {[%emt 0:04:09]} 14. Bb3 {[%emt 0:01:23]} O-O {[%emt 0:02:07]} 15. Nf3 {[%emt 0:02:43][%cal Bd2f3,Bf3e5,Be5d3,Bd3c5][%mdl 32]} Nd5 {[%emt 0:05:55]} 16. Bg3 {[%emt 0:01:26]} Nf6 {[%emt 0:02:25]} 17. Ne5 {[%emt 0:01:53] Strongly threatening Nxg6.} Bh7 {[%emt 0:00:36]} 18. f3 {[%emt 0:01:02]} Qb6 {[%emt 0:04:07]} 19. e4 {[%emt 0:08:23]} Rad8 {[%emt 0:02:55]} 20. Bf2 {[%emt 0:00:31]} Qc7 {[%emt 0:00:51]} 21. Nd3 {[%emt 0:02:27]} Rfe8 {[%emt 0:01:37]} 22. Nc5 {[%emt 0:03:56]} Qc8 {[%emt 0:04:29]} 23. a3 {[%emt 0:03:17]} Kh8 {[%emt 0:00:48]} 24. Ba2 {[%emt 0:00:26]} Bg8 {[%emt 0:00:44]} 25. Bh4 {[%emt 0:03:10]} Nd7 {[%emt 0:01:23]} 26. Bxe7 {[%emt 0:01:17]} Rxe7 {[%emt 0:00:03]} 27. e5 {[%emt 0:00:30]} Bh7 {[%emt 0:03:31]} 28. b4 {[%emt 0:00:37]} a6 {[%emt 0:01:11]} 29. a4 {[%emt 0:03:53][%cal Ba3a4,Ba4a5][%mdl 32] White is much more active.} Qc7 {[%emt 0:10:19] White stays focused until the end.} 30. a5 {[%emt 0:01:00]} Nxc5 {[%emt 0:04:12]} (30... Nf8 $142) 31. dxc5 $16 {[%emt 0:00:22]} Rxd1+ {[%emt 0:00:47]} 32. Rxd1 {[%emt 0:00:16]} g5 {[%emt 0:00:28]} 33. Rd6 {[%emt 0:00:17]} Kg7 {[%emt 0:00:06] [#]} 34. f4 $1 {[%emt 0:00:29][%mdl 512]} Re8 {[%emt 0:00:57]} (34... gxf4 35. Qg4+) 35. fxg5 {[%emt 0:00:16]} hxg5 {[%emt 0:00:08]} 36. Qd2 {[%emt 0:00:40]} Bg6 {[%emt 0:01:52] Black is weak on the dark squares} 37. Qxg5 {[%emt 0:00:27]} Qe7 {[%emt 0:00:06] Prevents Qf6+} 38. Qf4 {[%emt 0:01:11]} Rh8 {[%emt 0:00:06]} 39. g3 {[%emt 0:02:40] Against Qh4} Rh5 {[%emt 0:00:05]} (39... Rc8 $142 40. Qd2 Rc7) 40. h4 $18 {[%emt 0:01:03][%cal Bh2h4,Bh4h5][%mdl 32]} Rf5 {[%emt 0:01:18]} 41. Qd4 {[%emt 0:31:12]} Rf3 {[%emt 0:30:44]} 42. Kg2 {[%emt 0:03:53]} Ra3 {[%emt 0:00:00] [#]} (42... Rd3) 43. Bxe6 $1 {[%emt 0:00:00][%mdl 512] White is clearly winning.} Rd3 {[%emt 0:00:00]} (43... fxe6 44. Rd7) 44. Qg4 {[%emt 0:00:00]} Kf8 {[%emt 0:00:00]} 45. h5 {[%emt 0:00:00]} Bh7 {[%emt 0:00:00]} 46. Bf5 {[%emt 0:00:00] Weighted Error Value: White=0.12 (very precise) /Black=0.63  Mistake:       	---       	Black=3      Inaccurate:     	White=4     	Black=7      OK:         	White=15    	Black=7      Best:        	White=2     	Black=1      Brilliant:      	White=1     	---} 1-0

[Event "FIDE WSTC Open 50 2025"]
[Site "Prague"]
[Date "2025.02.21"]
[Round "5.16"]
[White "Polster, Wolfgang"]
[Black "Emms, John M"]
[Result "0-1"]
[Annotator "TA"]
[ECO "C47"]
[WhiteElo "2131"]
[BlackElo "2409"]
[PlyCount "62"]
[EventDate "2025.02.17"]
[EventType "team-tourn"]
[EventCountry "CZE"]
[SourceTitle "playchess.com"]
[Source "ChessBase"]
[SourceQuality "1"]
[TimeControl "40/5400+30:1800+30"]

{[%evp 10,62,-8,0,-6,-8,-7,-29,-29,-32,-12,-13,-11,-16,-22,-26,-23,-25,-15,-18,-21,-31,-12,-15,-12,-22,-18,-29,-9,-14,0,-13,0,-9,0,0,64,69,69,-95,-98,-118,-115,-169,-182,-176,-177,-174,-178,-182,-35,-280,-286,-975,-945]} 1. e4 {[%emt 0:00:12]} e5 {[%emt 0:00:26]} 2. Nf3 {[%emt 0:00:47]} Nc6 {[%emt 0:00:13]} 3. Nc3 {[%emt 0:01:19]} Nf6 {[%emt 0:00:31]} 4. g3 {[%emt 0:00:50]} Bc5 {[%emt 0:00:54]} 5. Bg2 {[%emt 0:00:33]} d6 {[%emt 0:01:06]} 6. d3 {[%emt 0:01:03]} a5 {[%emt 0:00:24] seems to push 6...a6 aside. C26: Vienna Game: 2...Nf6, sidelines .} 7. O-O {[%emt 0:01:20]} O-O {[%emt 0:00:39]} 8. h3 {[%emt 0:02:21]} h6 {[%emt 0:00:41] Black has an edge.} 9. Kh2 {[%emt 0:06:56]} a4 {[%emt 0:04:33]} 10. a3 {[%emt 0:00:24]} Re8 {[%emt 0:27:20]} 11. Be3 {[%emt 0:19:47]} Bxe3 {[%emt 0:03:41]} 12. fxe3 {[%emt 0:00:10]} Ne7 {[%emt 0:00:47]} 13. Nh4 {[%emt 0:02:44]} Ng6 $146 {[%emt 0:10:06]} ({Predecessor:} 13... c6 14. d4 Ng6 15. Nxg6 fxg6 16. Qd3 Qb6 17. Rab1 Kh7 18. Qc4 Be6 19. Qb4 Qxb4 20. axb4 {½-½ Utegaliev,A (2488)-Thybo,J (2569) Belgrade Radnicki GM 2021 (8)}) 14. Nf5 {[%emt 0:02:47]} c6 {[%emt 0:01:05]} 15. Qe2 {[%emt 0:11:25]} Be6 {[%emt 0:12:01]} 16. Rae1 {[%emt 0:08:17]} b5 {[%emt 0:06:54]} 17. Rf2 {[%emt 0:04:16]} Rb8 {[%emt 0:02:07][%cal Ba8b8,Bb8b7,Bb7d7][%mdl 32]} 18. Ref1 {[%emt 0:01:13][%cal Of5h6]} Nh7 {[%emt 0:00:24]} 19. h4 {[%emt 0:03:17]} Kh8 {[%emt 0:02:15]} 20. Bh3 {[%emt 0:02:29][%cal Of5g7] Threatens to win with Nxg7!.} Rb7 {[%emt 0:02:38]} 21. Rf3 {[%emt 0:11:17]} Rd7 {[%emt 0:02:13]} 22. Qf2 {[%emt 0:01:08]} d5 {[%emt 0:05:46]} (22... Rc7 $11) 23. exd5 $14 {[%emt 0:06:30]} cxd5 {[%emt 0:00:22][%cal Oe5e4]} 24. Qg1 $2 {[%emt 0:02:47] [#]} (24. Nxb5 $2 e4 25. Rf4 (25. dxe4 $2 dxe4 26. Nbd4 exf3 $19) 25... Qb8 $19 (25... Nxf4 $2 26. Qxf4 exd3 27. Nfd6 $19)) (24. e4 $1 $14 {keeps the upper hand.}) 24... e4 $1 $17 {[%emt 0:03:47]} 25. R3f2 {[%emt 0:02:40]} Ne5 {[%emt 0:02:15]} 26. Nd4 {[%emt 0:01:11]} (26. Nxb5 $17 Nf6 (26... exd3 27. cxd3 Nf6 28. Re2 $17) 27. Nxh6) 26... Bxh3 $19 {[%emt 0:01:43]} 27. Kxh3 {[%emt 0:00:06]} exd3 {[%emt 0:01:51]} 28. cxd3 {[%emt 0:00:51]} Nxd3 {[%emt 0:01:05]} 29. Rxf7 {[%emt 0:01:45]} Nf6 {[%emt 0:00:41]} ({Black should play} 29... Nxb2 $19 {and ...Rxf7 should not be overlooked} 30. Ncxb5 Nc4) 30. R1xf6 {[%emt 0:00:25] [#]} gxf6 {[%emt 0:00:32]} 31. Nc6 $2 {[%emt 0:00:39]} (31. Rxd7 Qxd7+ 32. Kg2) 31... Qc8 {[%emt 0:01:49] Weighted Error Value: White=0.55/Black=0.18 (very precise)   Loses game:     	White=1     	---        Mistake:       	White=3     	Black=2      OK:         	White=8     	Black=8      Best:        	White=1     	Black=1} 0-1

[Event "FIDE WSTC Open 50 2025"]
[Site "Prague"]
[Date "2025.02.21"]
[Round "5.17"]
[White "Csiszar, Csaba"]
[Black "Petursson, Margeir"]
[Result "0-1"]
[Annotator "TA"]
[ECO "D02"]
[WhiteElo "2378"]
[BlackElo "2403"]
[PlyCount "42"]
[EventDate "2025.02.17"]
[EventType "team-tourn"]
[EventCountry "CZE"]
[SourceTitle "playchess.com"]
[Source "ChessBase"]
[SourceQuality "1"]
[TimeControl "40/5400+30:1800+30"]

{[%evp 9,42,4,17,9,13,-4,0,0,-2,-2,0,-8,8,-62,-61,-334,-330,-340,-349,-339,-350,-362,-359,-355,-368,-478,-472,-660,-443,-754,-749,-731,-707,-861,-859]} 1. d4 {[%emt 0:00:04]} Nf6 {[%emt 0:00:07]} 2. Nf3 {[%emt 0:00:12]} d5 {[%emt 0:00:05]} 3. Bf4 {[%emt 0:00:14]} c5 {[%emt 0:00:15]} 4. e3 {[%emt 0:00:06]} Nc6 {[%emt 0:00:08]} 5. Nbd2 {[%emt 0:00:13]} Bg4 {[%emt 0:00:23]} 6. Bb5 {[%emt 0:00:39] D02: 1 d4 d5 2 Nf3 sidelines, including 2...Nf6 3 g3 and 2...Nf6 3 Bf4.} e6 {[%emt 0:01:23]} 7. c4 {[%emt 0:00:11]} cxd4 {[%emt 0:03:20]} 8. exd4 {[%emt 0:00:40] The position is equal.} dxc4 {[%emt 0:05:13]} 9. Qa4 {[%emt 0:00:37] Prevents Bb4} Bxf3 {[%emt 0:01:17]} 10. Nxf3 {[%emt 0:00:08]} Rc8 {[%emt 0:02:45]} 11. Ne5 $146 {[%emt 0:05:13]} (11. Bxc6+ $1 $11 bxc6 (11... Rxc6 12. Ne5 $16) 12. O-O) ({Predecessor:} 11. O-O Nd5 12. Bg5 Be7 13. Bxe7 Ndxe7 14. Qxa7 O-O 15. Bxc6 Rxc6 16. Qxb7 Rb6 17. Qe4 Rxb2 {0-1 Zia,T (2229)-Sidorika,V (2308) Titled Tuesday intern op 13th July blitz 2021 (3)}) 11... Qxd4 $15 {[%emt 0:10:09]} 12. O-O $2 {[%emt 0:41:43][%mdl 8192]} Qxf4 $19 {[%emt 0:25:50]} 13. Nxc6 {[%emt 0:06:55]} bxc6 {[%emt 0:00:58]} 14. Bxc6+ {[%emt 0:00:11] [#]} Kd8 $1 {[%emt 0:07:11]} ({Much less strong is} 14... Ke7 15. Rad1 Ng4 16. g3 $19) 15. Rad1+ {[%emt 0:31:37]} Bd6 {[%emt 0:00:55][%csl Gd6][%cal Rf4h2]} 16. g3 {[%emt 0:00:09]} Qe5 {[%emt 0:00:37]} 17. Qxa7 {[%emt 0:00:46] f4 would now be deadly.} Rxc6 {[%emt 0:07:45] Black is clearly winning.} 18. Rfe1 {[%emt 0:07:06]} Qc5 {[%emt 0:15:49]} 19. Qxf7 {[%emt 0:00:11]} (19. Qb8+ $142 Ke7 20. Qxh8) 19... Rc7 {[%emt 0:01:36]} 20. Qxe6 {[%emt 0:00:52]} Rd7 {[%emt 0:00:11] And now ...Re8 would win.} 21. b4 {[%emt 0:00:40]} Qxb4 {[%emt 0:01:16] White did not feel at home in the position after the opening.   Weighted Error Value: White=1.08/Black=0.30  Loses game:     	White=1     	---        Mistake:       	White=2     	---        Inaccurate:     	White=1     	Black=1      OK:         	White=4     	Black=4      Best:        	---       	Black=4      Strong:       	---       	Black=1} 0-1

[Event "FIDE WSTC Open 50 2025"]
[Site "Prague"]
[Date "2025.02.21"]
[Round "5.18"]
[White "Thorhallsson, Throstur"]
[Black "Czebe, Attila"]
[Result "1/2-1/2"]
[Annotator "TA"]
[ECO "B33"]
[WhiteElo "2394"]
[BlackElo "2255"]
[PlyCount "83"]
[EventDate "2025.02.17"]
[EventType "team-tourn"]
[EventCountry "CZE"]
[SourceTitle "playchess.com"]
[Source "ChessBase"]
[SourceQuality "1"]
[TimeControl "40/5400+30:1800+30"]

{[%evp 11,83,4,39,36,50,43,37,28,51,64,81,76,70,72,62,66,74,62,60,55,46,40,54,18,32,0,62,54,68,14,22,33,49,30,47,32,42,35,49,28,22,20,33,20,42,52,49,41,66,74,59,62,77,59,59,6,50,50,50,49,42,42,42,0,42,0,42,42,42,42,42,0,42,0]} 1. e4 {[%emt 0:00:06]} c5 {[%emt 0:00:04]} 2. Nf3 {[%emt 0:00:17]} Nc6 {[%emt 0:00:05]} 3. d4 {[%emt 0:00:20]} cxd4 {[%emt 0:00:04]} 4. Nxd4 {[%emt 0:00:06]} Nf6 {[%emt 0:00:07]} 5. Nc3 {[%emt 0:00:07]} e6 {[%emt 0:00:04]} 6. Nxc6 {[%emt 0:01:52]} dxc6 {[%emt 0:00:03]} 7. Qxd8+ {[%emt 0:03:41] B45: Sicilian Four Knights.} Kxd8 {[%emt 0:00:03]} 8. Bf4 {[%emt 0:04:32][%cal Bc1f4,Bf4c7,Bc7e5][%mdl 32]} Bc5 {[%emt 0:00:04][%cal Oe6e5]} 9. f3 $146 {[%emt 0:01:48]} ({Predecessor:} 9. O-O-O+ Ke7 10. Bg3 Rd8 11. Rxd8 Kxd8 12. e5 Nd7 13. Ne4 Be7 14. Be2 Nc5 15. Rd1+ {1-0 Mousavi,S (2424)-Mohandesi,S (2167) IRI-ch sf Arak 2016 (4)}) 9... Nh5 {[%emt 0:07:55]} 10. O-O-O+ {[%emt 0:05:05]} Ke7 {[%emt 0:07:04] [#]} 11. Bc7 {[%emt 0:08:36]} Bd7 {[%emt 0:00:15]} 12. Na4 {[%emt 0:06:41] White has more active pieces.} Rhc8 {[%emt 0:13:30] And now ...Be3+ would win.} 13. Be5 {[%emt 0:08:28] A sharp opening} Be3+ {[%emt 0:00:15]} 14. Kb1 {[%emt 0:00:02]} c5 {[%emt 0:03:14]} 15. Bd6+ {[%emt 0:04:39]} Ke8 {[%emt 0:00:10]} 16. Nc3 {[%emt 0:00:18][%cal Ba4c3,Bc3e2,Be2g3][%mdl 32]} a6 {[%emt 0:01:44] Against Nb5} 17. Ne2 {[%emt 0:10:57]} Bb5 {[%emt 0:04:10]} 18. Ng3 {[%emt 0:06:06]} Nf6 {[%emt 0:00:46]} (18... Nxg3 $11 19. hxg3 Bxf1 20. Rdxf1 (20. Rhxf1 Rc6 $11) 20... h6) 19. e5 $14 {[%emt 0:06:26]} Nd7 {[%emt 0:01:57][%csl Od6] Strong Square White (d6)} 20. c4 {[%emt 0:01:18]} (20. Re1 $14 Bh6 21. Bxb5 axb5 22. Ne4) 20... Bc6 $11 {[%emt 0:01:34]} 21. Bd3 {[%emt 0:00:41]} g6 {[%emt 0:02:49]} 22. h4 {[%emt 0:03:41]} Bd4 {[%emt 0:12:01]} 23. f4 {[%emt 0:04:08]} h5 $1 {[%emt 0:03:59][%cal Ob7b5]} 24. Be4 {[%emt 0:01:20]} b5 {[%emt 0:02:24]} 25. Bxc6 {[%emt 0:02:36]} Rxc6 {[%emt 0:00:10]} 26. cxb5 {[%emt 0:04:19]} axb5 {[%emt 0:00:04]} 27. Ne2 {[%emt 0:00:13]} Nb6 {[%emt 0:06:14]} 28. Nxd4 {[%emt 0:00:40]} cxd4 {[%emt 0:00:03]} 29. Rxd4 {[%emt 0:00:08]} Nd5 {[%emt 0:00:02]} 30. g3 {[%emt 0:03:49]} Kd7 {[%emt 0:02:02]} 31. a3 {[%emt 0:00:28]} Kc8 {[%emt 0:02:50]} 32. Rhd1 {[%emt 0:00:38]} Kb7 {[%emt 0:00:11]} 33. R1d3 {[%emt 0:01:06]} (33. Rc1 $14) 33... Rc4 {[%emt 0:01:19]} 34. Bb4 {[%emt 0:03:50]} Rac8 {[%emt 0:00:52]} 35. Bd2 {[%emt 0:02:07] Repels Rc1+} Ka6 {[%emt 0:04:12]} 36. Ka2 {[%emt 0:00:31]} Kb6 {[%emt 0:02:56]} 37. Kb1 {[%emt 0:01:34]} (37. Kb3 {is interesting.} Kc5 38. Bb4+ Kb6 39. Be1) 37... Ka6 $1 {[%emt 0:00:03]} 38. Ka2 {[%emt 0:00:18]} R8c6 {[%emt 0:00:11]} 39. Kb3 {[%emt 0:01:02]} Kb7 {[%emt 0:03:20]} 40. Bc3 {[%emt 0:01:04]} Ka6 {[%emt 0:00:21]} 41. Bd2 {[%emt 0:31:15]} Kb7 {[%emt 0:30:09]} 42. Bc3 {Weighted Error Value: White=0.13 (very precise) /Black=0.10 (very precise)   Mistake:       	White=2     	Black=1      Inaccurate:     	White=4     	Black=2      OK:         	White=18    	Black=15     Best:        	White=1     	Black=2      Strong:       	---       	Black=2} 1/2-1/2